bitfinex/quotes_SOLUSD_20241225
["timestamp","ask_amount","ask_price","bid_price","bid_amount"]
[1735131934704,6.0892,196.65,196.57,0.12549]
[1735131935702,6.0892,196.65,196.59,0.12549]
[1735131939529,0.95354784,196.64,196.59,0.12549]
[1735131940008,0.95354784,196.64,196.58,20.0]
[1735131940386,0.95366069,196.64,196.58,20.0]
[1735131940899,6.0892,196.65,196.58,20.0]
[1735131941098,0.95359436,196.64,196.58,20.0]
[1735131941310,6.0892,196.65,196.58,20.0]
[1735131941513,0.95357799,196.64,196.58,20.0]
[1735131941812,6.0892,196.65,196.58,20.0]
[1735131942107,0.953619,196.64,196.58,20.0]
[1735131942315,6.0892,196.65,196.58,20.0]
[1735131942608,0.95359598,196.64,196.58,20.0]
[1735131943314,0.95359598,196.64,196.56,0.12549]
[1735131944715,0.95359598,196.64,196.58,20.0]
[1735131945295,6.0892,196.65,196.61,0.12549]
[1735131945502,6.0892,196.65,196.63,20.0]
[1735131946215,1.6532,196.68,196.63,20.0]
[1735131948419,0.95341192,196.67,196.63,20.0]
[1735131948621,1.6532,196.68,196.63,20.0]
[1735131952497,1.6532,196.68,196.6,20.0]
[1735131952498,24.73033337,196.67,196.6,20.0]
[1735131952811,24.73033337,196.67,196.58,0.12549]
[1735131954321,24.73033337,196.67,196.6,20.0]
[1735131955419,24.73033337,196.67,196.62,9.94354764]
[1735131955625,23.776884,196.67,196.62,9.94354764]
[1735131956119,2.60676459,196.68,196.62,9.94354764]
[1735131956426,1.6532,196.68,196.64,9.94354764]
[1735131956652,1.6532,196.68,196.66,9.94354764]
[1735131958928,1.6532,196.68,196.64,9.94354764]
[1735131960005,0.95341025,196.67,196.62,9.94354764]
[1735131960526,1.6532,196.68,196.62,9.94354764]
[1735131960828,23.776884,196.67,196.64,9.94354764]
[1735131961337,24.73034444,196.67,196.64,9.94354764]
[1735131961504,23.776884,196.67,196.64,9.94354764]
[1735131962027,23.776884,196.67,196.6,20.0]
[1735131962227,23.776884,196.67,196.64,9.94354764]
[1735131965428,1.6532,196.68,196.64,9.94354764]
[1735131967527,2.6066146,196.68,196.64,9.94354764]
[1735131967732,1.6532,196.68,196.64,9.94354764]
[1735131970134,1.6532,196.68,196.66,9.94354764]
[1735131970935,6.2914,196.7,196.66,9.94354764]
[1735131971612,1.63,196.73,196.68,9.94354764]
[1735131971946,1.63,196.73,196.7,9.94354764]
[1735131973230,1.63,196.73,196.68,9.94354764]
[1735131974456,2.58313304,196.73,196.68,9.94354764]
[1735131975335,1.63,196.73,196.68,9.94354764]
[1735131980141,24.73006277,196.72,196.66,20.0]
[1735131980439,24.73006277,196.72,196.57,12.7178]
[1735131980440,25.390284,196.67,196.57,12.7178]
[1735131980650,0.95358722,196.66,196.6,9.94354764]
[1735131981141,1.6134,196.67,196.62,9.94354764]
[1735131981539,1.6134,196.67,196.64,9.94354764]
[1735131981755,1.6134,196.67,196.66,20.0]
[1735131982125,1.6134,196.67,196.64,9.94354764]
[1735131982641,24.73036304,196.66,196.62,20.0]
[1735131982827,24.73036304,196.66,196.59,9.94354764]
[1735131983438,24.73036304,196.66,196.56,12.7186]
[1735131983641,24.73036304,196.66,196.59,9.94354764]
[1735131983842,23.776884,196.64,196.59,9.94354764]
[1735131984051,24.73053678,196.64,196.59,9.94354764]
[1735131985569,1.6134,196.67,196.63,9.94354764]
[1735131985858,6.4306,196.7,196.66,9.94354764]
[1735131986031,6.4306,196.7,196.67,9.9382914]
[1735131987244,1.6134,196.72,196.69,9.9382914]
[1735131992256,1.6134,196.72,196.67,20.0]
[1735131992457,24.73019496,196.71,196.67,20.0]
[1735131992853,24.73019496,196.71,196.67,9.9382914]
[1735131993366,24.73019496,196.71,196.62,0.12549]
[1735131993571,24.73019496,196.71,196.67,9.9382914]
[1735131995668,24.73019496,196.71,196.66,9.93873292]
[1735131996173,34.66892788,196.71,196.63,9.93873292]
[1735131996360,6.0072,196.7,196.63,9.93873292]
[1735131996553,0.9534527,196.69,196.63,9.93873292]
[1735131996754,6.0072,196.7,196.65,9.93873292]
[1735131997868,6.96051379,196.7,196.65,9.93873292]
[1735131999866,6.0072,196.7,196.65,9.93873292]
[1735132000575,6.0072,196.7,196.67,9.93873292]
[1735132001869,0.95333679,196.69,196.65,9.93873292]
[1735132002173,23.776884,196.68,196.62,29.93873292]
[1735132002468,0.9535731,196.67,196.62,9.93873292]
[1735132004573,0.95349339,196.69,196.64,9.93873292]
[1735132004769,23.776884,196.68,196.64,9.93873292]
[1735132004977,0.95351503,196.67,196.62,20.0]
[1735132005273,0.95351503,196.67,196.62,29.93873292]
[1735132005468,0.95352374,196.67,196.62,29.93873292]
[1735132007168,24.73036983,196.68,196.64,9.93873292]
[1735132008154,0.9534457,196.67,196.64,9.93873292]
[1735132008468,0.95347917,196.67,196.64,9.93873292]
[1735132009373,24.73035509,196.68,196.64,9.93873292]
[1735132011259,6.0072,196.7,196.66,9.93873292]
[1735132011464,6.0072,196.7,196.68,9.93873292]
[1735132012555,1.6134,196.72,196.68,9.93873292]
[1735132012754,1.6134,196.72,196.7,9.93873292]
[1735132014559,1.6134,196.72,196.68,9.93873292]
[1735132016782,6.1185,196.74,196.7,9.93873292]
[1735132016982,1.6267,196.77,196.73,9.93873292]
[1735132017679,1.6267,196.77,196.75,9.93873292]
[1735132020085,1.6267,196.77,196.7,0.12549]
[1735132020274,1.6267,196.77,196.74,9.93873292]
[1735132020474,1.6267,196.77,196.66,14.0586]
[1735132020678,0.95296037,196.76,196.71,9.93873292]
[1735132021193,23.776884,196.75,196.71,9.93873292]
[1735132021367,0.95320033,196.74,196.71,9.93873292]
[1735132021972,23.776884,196.76,196.71,9.93873292]
[1735132022481,2.57983093,196.77,196.71,9.93873292]
[1735132023593,23.776884,196.76,196.71,9.93873292]
[1735132023885,23.776884,196.74,196.68,20.0]
[1735132024093,0.95321747,196.73,196.7,9.93873292]
[1735132024388,23.776884,196.74,196.7,9.93873292]
[1735132024592,0.95321586,196.73,196.7,9.93873292]
[1735132025694,1.6267,196.77,196.72,9.93873292]
[1735132025887,1.6267,196.77,196.76,9.93873292]
[1735132026288,1.6267,196.77,196.74,9.93873292]
[1735132032001,24.72983571,196.76,196.73,9.93873292]
[1735132032300,23.776884,196.76,196.73,9.93873292]
[1735132032797,1.6267,196.77,196.73,9.93873292]
[1735132033300,24.72990893,196.76,196.72,9.93873292]
[1735132034500,0.95302493,196.76,196.74,9.93873292]
[1735132034706,1.6267,196.77,196.74,9.93873292]
[1735132034879,1.6267,196.77,196.76,9.93873292]
[1735132038381,2.57814762,196.82,196.76,9.93873292]
[1735132038585,2.57802477,196.82,196.76,9.93873292]
[1735132044282,33.71561692,196.81,196.72,9.93873292]
[1735132044508,23.776884,196.79,196.72,9.93873292]
[1735132044717,0.95301712,196.78,196.72,9.93873292]
[1735132047603,0.95301712,196.78,196.68,20.0]
[1735132047604,23.776884,196.77,196.7,9.93873292]
[1735132047906,23.776884,196.75,196.7,9.93873292]
[1735132048208,0.95318311,196.74,196.7,9.93873292]
[1735132048392,24.7300487,196.75,196.7,9.93873292]
[1735132049307,24.7300487,196.75,196.68,9.93873292]
[1735132049602,24.7300487,196.75,196.7,9.93873292]
[1735132050543,1.6253,196.76,196.72,9.93873292]
[1735132050718,7.32122122,196.81,196.74,9.93873292]
[1735132050719,18.88525414,196.81,196.74,9.93873292]
[1735132052512,8.94652122,196.81,196.74,9.93873292]
[1735132052911,7.9934,196.81,196.76,9.93873292]
[1735132055434,7.9934,196.81,196.75,0.12549]
[1735132055834,24.72971926,196.8,196.74,20.0]
[1735132056034,24.72971926,196.8,196.74,29.93873292]
[1735132056529,23.776884,196.8,196.74,29.93873292]
[1735132056837,24.72972039,196.8,196.74,29.93873292]
[1735132057344,0.95283639,196.8,196.74,29.93873292]
[1735132057524,7.9934,196.81,196.74,29.93873292]
[1735132058951,7.9934,196.81,196.75,0.12549]
[1735132059440,7.9934,196.81,196.76,9.93873292]
[1735132062137,24.72969515,196.8,196.74,20.0]
[1735132062346,24.72969515,196.8,196.73,9.93873292]
[1735132062930,7.9934,196.81,196.74,0.12549]
[1735132063441,7.9934,196.81,196.75,9.93873292]
[1735132064038,0.95282583,196.8,196.75,9.93873292]
[1735132064246,0.9528605,196.8,196.75,9.93873292]
[1735132067055,8.94625386,196.81,196.75,9.93873292]
[1735132068050,7.9934,196.81,196.75,9.93873292]
[1735132070951,7.9934,196.81,196.76,0.12549]
[1735132073446,0.95273834,196.82,196.76,0.12549]
[1735132073653,33.71561692,196.86,196.77,9.93873292]
[1735132073851,23.776884,196.84,196.77,9.93873292]
[1735132075452,23.776884,196.84,196.79,9.93873292]
[1735132077555,0.95264034,196.85,196.79,9.93873292]
[1735132077855,23.776884,196.86,196.79,9.93873292]
[1735132080239,23.776884,196.84,196.78,20.0]
[1735132080544,0.95270074,196.85,196.8,20.0]
[1735132081132,0.95270074,196.85,196.79,9.93873292]
[1735132081362,0.95270074,196.85,196.79,0.12549]
[1735132081958,0.95270074,196.85,196.8,20.0]
[1735132082164,24.72948471,196.86,196.79,10.06422292]
[1735132082770,34.66821763,196.86,196.79,10.06422292]
[1735132084650,34.66821763,196.86,196.79,0.12549]
[1735132084853,24.72948471,196.86,196.79,20.0]
[1735132085061,1.5555,196.81,196.74,9.93873292]
[1735132085375,2.50832645,196.81,196.74,9.93873292]
[1735132085979,2.50832645,196.81,196.75,0.12549]
[1735132086838,33.71561692,196.8,196.69,12.7103]
[1735132087171,9.93873292,196.74,196.67,9.93873292]
[1735132087536,10.89186014,196.74,196.67,9.93873292]
[1735132088265,10.89186014,196.74,196.68,0.12549]
[1735132088689,10.89186014,196.74,196.65,9.93873292]
[1735132089182,10.89186014,196.74,196.66,0.12549]
[1735132090066,23.776884,196.73,196.66,0.12549]
[1735132090271,0.95327355,196.72,196.65,9.93873292]
[1735132090473,10.89200647,196.72,196.65,9.93873292]
[1735132090971,23.776884,196.71,196.62,20.0]
[1735132091176,8.2138,196.75,196.69,9.93873292]
[1735132091468,8.2138,196.75,196.7,0.12549]
[1735132093059,8.2138,196.75,196.71,9.93873292]
[1735132093267,8.2138,196.8,196.72,0.12549]
[1735132093468,0.95289883,196.79,196.72,0.12549]
[1735132094148,9.1667166,196.8,196.74,20.0]
[1735132094577,8.2138,196.8,196.74,20.0]
[1735132094776,9.16663536,196.8,196.74,20.0]
[1735132094955,8.2138,196.8,196.73,9.93873292]
[1735132095372,9.16662883,196.8,196.73,9.93873292]
[1735132095666,9.16662883,196.8,196.72,20.12549]
[1735132095875,9.16662883,196.8,196.74,20.0]
[1735132096578,8.2138,196.8,196.73,9.93873292]
[1735132096754,9.16663828,196.8,196.73,9.93873292]
[1735132096950,8.2138,196.8,196.73,9.93873292]
[1735132097170,9.16663907,196.8,196.73,9.93873292]
[1735132097379,8.2138,196.8,196.73,9.93873292]
[1735132097570,8.2138,196.8,196.74,0.12549]
[1735132097772,9.16662247,196.8,196.74,0.12549]
[1735132098274,8.2138,196.8,196.75,0.12549]
[1735132098877,0.95286401,196.79,196.74,20.0]
[1735132099073,9.93873292,196.78,196.7,20.0]
[1735132099301,9.93873292,196.74,196.64,7.92284843]
[1735132099486,9.93873292,196.74,196.66,9.93873292]
[1735132099662,1.5683,196.73,196.66,9.93873292]
[1735132099861,2.52145891,196.73,196.64,7.92284843]
[1735132100061,1.5683,196.73,196.66,9.93873292]
[1735132100269,1.5683,196.73,196.67,0.12549]
[1735132100467,1.5683,196.73,196.66,9.93873292]
[1735132101059,1.5683,196.73,196.69,20.0]
[1735132102077,7.15425165,196.72,196.64,12.7134]
[1735132102263,7.15425165,196.72,196.67,20.0]
[1735132105298,23.776884,196.71,196.64,20.0]
[1735132105479,0.95335976,196.7,196.66,20.0]
[1735132105868,0.95335976,196.7,196.63,9.93873292]
[1735132106405,0.95335976,196.7,196.64,20.0]
[1735132107179,23.776884,196.69,196.64,20.0]
[1735132107382,0.95343263,196.68,196.64,20.0]
[1735132107570,23.776884,196.69,196.64,20.0]
[1735132107971,9.93873292,196.71,196.64,20.0]
[1735132108172,23.776884,196.7,196.64,20.0]
[1735132108897,10.89204926,196.71,196.64,20.0]
[1735132110000,23.776884,196.7,196.64,20.0]
[1735132110167,10.89216777,196.69,196.64,20.0]
[1735132112788,9.93873292,196.66,196.58,12.7173]
[1735132112984,7.15465453,196.65,196.58,9.93873292]
[1735132113596,33.71561692,196.64,196.56,9.93873292]
[1735132113773,0.95370908,196.63,196.56,9.93873292]
[1735132114087,0.95370908,196.63,196.57,0.12549]
[1735132114319,0.95370908,196.63,196.56,9.93873292]
[1735132114791,1.597,196.61,196.54,9.93873292]
[1735132114990,0.95385352,196.6,196.54,9.93873292]
[1735132115186,10.89258644,196.6,196.52,9.93873292]
[1735132115381,10.89258644,196.6,196.49,12.7231]
[1735132115580,10.89258644,196.6,196.52,9.93873292]
[1735132115885,23.776884,196.57,196.49,9.93873292]
[1735132116081,10.89276834,196.56,196.49,9.93873292]
[1735132116470,10.89276834,196.56,196.5,0.12549]
[1735132116898,9.93873292,196.58,196.5,10.06422292]
[1735132117081,10.89265659,196.58,196.5,10.06422292]
[1735132117280,23.776884,196.57,196.5,10.06422292]
[1735132117493,0.95405748,196.56,196.5,10.06422292]
[1735132119393,24.73091876,196.57,196.5,10.06422292]
[1735132119582,6.5137,196.59,196.52,9.93873292]
[1735132119894,0.95387907,196.58,196.52,9.93873292]
[1735132121300,16.45243292,196.59,196.52,9.93873292]
[1735132121875,0.95389656,196.58,196.52,9.93873292]
[1735132122295,16.45243292,196.59,196.52,9.93873292]
[1735132122899,0.95390484,196.58,196.52,9.93873292]
[1735132126176,0.95390538,196.58,196.52,9.93873292]
[1735132126378,0.95390648,196.58,196.52,9.93873292]
[1735132126801,16.45243292,196.59,196.52,9.93873292]
[1735132127097,0.9539001,196.58,196.52,9.93873292]
[1735132127314,16.45243292,196.59,196.52,9.93873292]
[1735132127513,0.95390398,196.58,196.5,0.12549]
[1735132127679,0.95390398,196.58,196.52,0.12549]
[1735132129395,0.95390398,196.58,196.51,9.93873292]
[1735132129999,0.95390398,196.58,196.49,12.7227]
[1735132130203,9.93873292,196.57,196.5,0.12549]
[1735132130380,0.95402824,196.56,196.5,0.12549]
[1735132130580,9.93873292,196.57,196.5,0.12549]
[1735132130803,0.95402353,196.56,196.5,0.12549]
[1735132131805,0.95402353,196.56,196.49,22.66143292]
[1735132131806,9.93873292,196.54,196.45,13.48854533]
[1735132132007,9.93873292,196.52,196.45,9.93873292]
[1735132132222,0.95425632,196.51,196.46,0.12549]
[1735132132700,0.95425632,196.51,196.45,9.93873292]
[1735132132905,10.89298924,196.51,196.44,9.93873292]
[1735132133282,10.89298924,196.51,196.47,20.0]
[1735132134179,10.89298924,196.51,196.45,0.12549]
[1735132134380,0.95425632,196.51,196.45,0.12549]
[1735132134901,33.71561692,196.5,196.42,22.66633292]
[1735132135092,0.95437489,196.49,196.42,22.66633292]
[1735132135292,33.71561692,196.5,196.43,0.12549]
[1735132135896,0.95430604,196.49,196.43,0.12549]
[1735132136206,33.71561692,196.5,196.43,0.12549]
[1735132136581,0.95432523,196.49,196.43,0.12549]
[1735132136783,34.66995411,196.5,196.43,0.12549]
[1735132137804,0.95433944,196.49,196.43,0.12549]
[1735132138207,9.93873292,196.5,196.43,0.12549]
[1735132138409,16.19283292,196.52,196.45,20.0]
[1735132138612,23.776884,196.51,196.44,9.93873292]
[1735132138992,6.2541,196.52,196.45,0.12549]
[1735132139310,6.2541,196.52,196.47,0.12549]
[1735132141810,1.6273,196.53,196.49,0.12549]
[1735132142006,16.19283292,196.57,196.49,0.12549]
[1735132142188,16.19283292,196.57,196.51,0.12549]
[1735132142389,6.2541,196.57,196.51,0.12549]
[1735132142712,6.2541,196.57,196.53,0.12549]
[1735132143209,1.6273,196.58,196.56,0.12549]
[1735132143414,6.2541,196.62,196.58,0.12549]
[1735132143601,1.6273,196.63,196.6,0.12549]
[1735132143807,1.6273,196.63,196.57,29.93873292]
[1735132144515,1.6273,196.63,196.58,0.12549]
[1735132155929,2.58088282,196.63,196.58,0.12549]
[1735132156414,1.6273,196.63,196.58,0.12549]
[1735132157524,1.6273,196.63,196.58,30.72549]
[1735132157823,1.6273,196.63,196.58,0.12549]
[1735132158421,1.6273,196.63,196.54,12.72]
[1735132158422,7.9142,196.68,196.62,0.12549]
[1735132158921,7.9142,196.68,196.64,20.0]
[1735132159115,7.9142,196.68,196.65,0.12549]
[1735132159312,9.93873292,196.72,196.65,10.06422292]
[1735132159515,7.8909,196.75,196.65,10.06422292]
[1735132159516,10.89195011,196.74,196.65,10.06422292]
[1735132160709,23.776884,196.73,196.65,10.06422292]
[1735132161304,7.8909,196.75,196.69,30.06422292]
[1735132161821,17.82963292,196.75,196.7,20.0]
[1735132162302,0.95311439,196.74,196.7,20.0]
[1735132163299,0.95311439,196.74,196.68,0.12549]
[1735132163817,0.95311439,196.74,196.66,12.7122]
[1735132164023,0.95311439,196.74,196.67,0.12549]
[1735132165120,0.95311439,196.74,196.68,20.0]
[1735132165121,9.93873292,196.73,196.68,20.0]
[1735132165419,0.95324374,196.72,196.68,20.0]
[1735132165608,9.93873292,196.73,196.68,20.0]
[1735132165807,0.9532198,196.72,196.68,20.0]
[1735132166029,9.93873292,196.73,196.68,20.0]
[1735132166323,0.95321787,196.72,196.68,20.0]
[1735132167515,0.95319314,196.74,196.68,20.0]
[1735132169208,9.93873292,196.73,196.66,20.12549]
[1735132169522,0.95322501,196.72,196.68,20.0]
[1735132169725,0.95322501,196.72,196.66,0.12549]
[1735132170528,0.95322501,196.72,196.65,9.93873292]
[1735132170830,23.776884,196.7,196.6,12.7161]
[1735132171027,0.95343257,196.69,196.62,9.93873292]
[1735132171625,7.8909,196.75,196.64,9.93873292]
[1735132171822,9.93873292,196.72,196.64,9.93873292]
[1735132172021,23.776884,196.71,196.64,9.93873292]
[1735132172641,23.776884,196.71,196.63,0.12549]
[1735132172642,0.95325938,196.7,196.63,20.12549]
[1735132172807,0.95325938,196.7,196.63,30.06422292]
[1735132173931,24.73023377,196.71,196.63,30.06422292]
[1735132174377,7.8909,196.75,196.66,0.12549]
[1735132174378,23.776884,196.74,196.66,0.12549]
[1735132174519,0.9531904,196.73,196.66,0.12549]
[1735132174840,34.66880732,196.74,196.66,0.12549]
[1735132179137,24.7300744,196.74,196.66,0.12549]
[1735132179337,17.82963292,196.75,196.68,0.12549]
[1735132180631,0.95312179,196.74,196.68,0.12549]
[1735132180946,9.93873292,196.73,196.63,12.7139]
[1735132181245,0.95326516,196.72,196.67,20.0]
[1735132181826,9.93873292,196.71,196.66,20.0]
[1735132182038,0.95335472,196.7,196.62,9.93873292]
[1735132182844,0.95335472,196.7,196.63,0.12549]
[1735132183049,9.93873292,196.7,196.63,0.12549]
[1735132183720,0.95336695,196.69,196.63,0.12549]
[1735132184040,9.93873292,196.7,196.63,0.12549]
[1735132185637,0.95337169,196.69,196.63,0.12549]
[1735132186540,0.95337169,196.69,196.62,9.93873292]
[1735132186844,0.95337169,196.69,196.6,12.7161]
[1735132186845,18.03023292,196.68,196.63,20.0]
[1735132187044,0.95349027,196.67,196.63,20.0]
[1735132188320,18.03023292,196.68,196.63,20.0]
[1735132191524,8.0915,196.68,196.63,20.0]
[1735132191931,24.73033306,196.67,196.6,20.0]
[1735132192134,18.03023292,196.68,196.6,29.93873292]
[1735132193345,18.03023292,196.68,196.61,0.12549]
[1735132193548,8.0915,196.68,196.61,0.12549]
[1735132193736,8.0915,196.68,196.62,20.0]
[1735132193925,8.0915,196.68,196.62,29.93873292]
[1735132198051,8.0915,196.68,196.62,60.49873292]
[1735132198252,8.0915,196.68,196.62,29.93873292]
[1735132200153,8.0915,196.68,196.62,27.93872292]
[1735132200828,8.0915,196.68,196.63,0.12549]
[1735132201034,8.0915,196.68,196.64,9.93873292]
[1735132202156,8.0915,196.68,196.64,20.0]
[1735132202334,0.95342737,196.67,196.64,20.0]
[1735132202534,8.0915,196.68,196.64,20.0]
[1735132202735,1.6228,196.74,196.67,10.06422292]
[1735132202951,1.6228,196.74,196.69,10.06422292]
[1735132204156,1.6228,196.74,196.69,9.93873292]
[1735132204463,2.57585069,196.74,196.67,22.64983292]
[1735132205639,2.57585069,196.74,196.67,9.93873292]
[1735132206437,2.57585069,196.74,196.65,60.49873292]
[1735132206652,2.57585069,196.74,196.67,20.0]
[1735132206839,2.57585069,196.74,196.68,20.0]
[1735132209262,2.57585069,196.74,196.65,20.0]
[1735132209266,33.71561692,196.73,196.65,20.0]
[1735132209469,9.93873292,196.7,196.65,20.0]
[1735132209667,0.95340846,196.69,196.6,9.93873292]
[1735132209868,29.967484,196.68,196.6,9.93873292]
[1735132210046,29.967484,196.68,196.61,0.12549]
[1735132211263,29.967484,196.68,196.63,20.0]
[1735132212054,0.95345738,196.67,196.63,20.0]
[1735132212268,29.967484,196.68,196.63,20.0]
[1735132212573,0.95346822,196.67,196.63,20.0]
[1735132212771,29.967484,196.68,196.63,20.0]
[1735132212970,6.1906,196.68,196.65,20.0]
[1735132213274,6.1906,196.68,196.64,9.93873292]
[1735132214565,6.1906,196.68,196.65,20.0]
[1735132216161,6.1906,196.68,196.62,9.93873292]
[1735132216366,6.1906,196.68,196.63,0.12549]
[1735132216777,6.1906,196.68,196.65,20.0]
[1735132218767,6.1906,196.68,196.63,0.12549]
[1735132220364,1.5604,196.67,196.64,20.0]
[1735132224688,7.5988,196.75,196.66,0.12549]
[1735132224982,7.5988,196.75,196.7,0.12549]
[1735132227690,9.93873292,196.82,196.73,20.12549]
[1735132227989,0.95281115,196.81,196.73,20.12549]
[1735132228681,0.95281115,196.81,196.74,0.12549]
[1735132230004,9.93873292,196.8,196.74,0.12549]
[1735132230991,0.95288537,196.79,196.74,0.12549]
[1735132231189,9.93873292,196.78,196.73,20.0]
[1735132231503,0.95297882,196.77,196.7,9.93873292]
[1735132231679,23.776884,196.76,196.7,20.0]
[1735132231890,26.29037121,196.76,196.7,20.0]
[1735132232574,36.22910413,196.76,196.7,20.0]
[1735132233177,35.27601692,196.76,196.7,20.0]
[1735132233808,0.95306331,196.75,196.7,20.0]
[1735132234106,35.27601692,196.76,196.7,20.0]
[1735132234431,0.95307111,196.75,196.7,20.0]
[1735132234583,35.27601692,196.76,196.7,20.0]
[1735132236707,0.95307636,196.75,196.7,20.0]
[1735132237281,35.27601692,196.76,196.7,20.0]
[1735132237482,0.95306251,196.75,196.7,20.0]
[1735132237690,35.27601692,196.76,196.7,20.0]
[1735132238734,0.95306806,196.75,196.7,20.0]
[1735132238901,0.95306806,196.75,196.69,9.93873292]
[1735132239096,0.95306806,196.75,196.68,0.12549]
[1735132239297,9.93873292,196.74,196.68,20.12549]
[1735132239499,9.93873292,196.72,196.65,20.348555]
[1735132239803,9.93873292,196.7,196.62,9.93873292]
[1735132239999,0.9533877,196.69,196.62,9.93873292]
[1735132240426,2.4562877,196.69,196.63,0.12549]
[1735132241397,23.776884,196.68,196.6,0.76260409]
[1735132241601,0.95341555,196.67,196.59,9.93873292]
[1735132242501,0.95341555,196.67,196.6,0.12549]
[1735132242727,0.95341555,196.67,196.62,20.0]
[1735132243104,0.95341555,196.67,196.61,20.0]
[1735132243423,33.71561692,196.68,196.62,20.0]
[1735132243605,1.5029,196.69,196.62,20.0]
[1735132243806,0.95343602,196.68,196.62,20.0]
[1735132245626,33.71561692,196.67,196.61,20.0]
[1735132245832,1.5029,196.69,196.58,9.93873292]
[1735132245833,33.71561692,196.65,196.58,9.93873292]
[1735132246012,0.95363496,196.64,196.58,9.93873292]
[1735132246530,17.60953292,196.63,196.56,9.93873292]
[1735132246827,9.93873292,196.61,196.53,32.56853777]
[1735132247020,9.93873292,196.61,196.53,11.94727069]
[1735132247225,9.93873292,196.61,196.53,9.93873292]
[1735132247416,0.95380528,196.6,196.53,9.93873292]
[1735132247611,0.95383971,196.62,196.56,0.12549]
[1735132247919,7.6708,196.63,196.58,0.12549]
[1735132254455,7.6708,196.63,196.57,9.93873292]
[1735132254650,34.66926922,196.62,196.53,9.93873292]
[1735132255315,24.7305363,196.62,196.54,0.12549]
[1735132255611,34.66926922,196.62,196.55,9.93873292]
[1735132256311,23.776884,196.62,196.56,0.12549]
[1735132256512,7.6708,196.63,196.58,20.0]
[1735132256818,7.6708,196.63,196.57,9.93873292]
[1735132257024,7.6708,196.63,196.59,9.93873292]
[1735132257225,0.95356862,196.67,196.6,0.12549]
[1735132257538,18.64680154,196.68,196.6,0.12549]
[1735132257739,18.64680154,196.68,196.62,20.0]
[1735132259123,23.776884,196.67,196.62,20.0]
[1735132259326,0.95351123,196.66,196.62,20.0]
[1735132260018,10.89224415,196.66,196.6,0.12549]
[1735132262845,10.89224415,196.66,196.54,2.78827038]
[1735132263052,9.93873292,196.64,196.59,20.0]
[1735132263244,0.9537074,196.63,196.59,20.0]
[1735132264123,9.93873292,196.64,196.59,20.0]
[1735132266250,23.776884,196.65,196.59,20.0]
[1735132266550,0.95363723,196.64,196.56,9.93873292]
[1735132266747,10.89237015,196.64,196.56,9.93873292]
[1735132266930,23.776884,196.63,196.56,9.93873292]
[1735132267136,2.46255207,196.62,196.56,9.93873292]
[1735132268346,1.5088,196.62,196.56,9.93873292]
[1735132272551,1.5088,196.62,196.58,9.93873292]
[1735132272758,1.5088,196.62,196.6,9.93873292]
[1735132272956,0.95369997,196.67,196.63,20.0]
[1735132272957,1.5088,196.67,196.63,20.0]
[1735132273139,1.5088,196.67,196.64,9.93873292]
[1735132273454,1.5088,196.67,196.66,20.0]
[1735132274948,6.232,196.68,196.66,20.0]
[1735132275144,1.5088,196.72,196.66,20.0]
[1735132275555,1.5088,196.72,196.66,9.93873292]
[1735132275764,1.44758548,196.72,196.66,9.93873292]
[1735132278166,0.95320763,196.71,196.66,9.93873292]
[1735132278470,2.40088753,196.72,196.66,9.93873292]
[1735132283986,23.776884,196.71,196.65,20.0]
[1735132284147,10.89214415,196.7,196.62,9.93873292]
[1735132284346,0.95341123,196.7,196.64,20.0]
[1735132284652,1.44758548,196.72,196.65,0.12549]
[1735132284854,2.40084986,196.72,196.65,0.12549]
[1735132285367,2.40084986,196.72,196.66,9.93873292]
[1735132285576,1.44758548,196.72,196.69,20.0]
[1735132285752,6.0057,196.73,196.69,19.5]
[1735132285956,11.49323292,196.77,196.69,19.5]
[1735132286152,12.44625673,196.77,196.69,19.5]
[1735132286849,9.93873292,196.74,196.62,12.7144]
[1735132287059,9.93873292,196.72,196.63,10.70141928]
[1735132287369,0.95327183,196.71,196.63,10.70141928]
[1735132287557,0.95327183,196.71,196.64,0.12549]
[1735132287748,0.95327183,196.71,196.65,20.0]
[1735132288971,15.97853292,196.72,196.65,20.0]